[Event "Late-Titled-Tuesday-Blitz-February-27-2024"]
[Site "Chess.com"]
[Date "2024.02.27"]
[Round "6"]
[White "NoHeThTo"]
[Black "Elsa167"]
[Result "1-0"]
[WhiteElo "2657"]
[BlackElo "2884"]
[TimeControl "180+1"]
[EndTime "15:06:54 PST"]
[Termination "NoHeThTo won on time"]

1. c4 {[%clk 0:03:00.9]} 1... g6 {[%clk 0:02:59.8]} 2. g3 {[%clk 0:03:00.7]}
2... Bg7 {[%clk 0:03:00.2]} 3. Bg2 {[%clk 0:03:01.3]} 3... Nf6 {[%clk
0:03:00.9]} 4. Nf3 {[%clk 0:03:01.8]} 4... O-O {[%clk 0:03:01.5]} 5. O-O {[%clk
0:03:02.5]} 5... d6 {[%clk 0:03:02.1]} 6. Nc3 {[%clk 0:03:02.8]} 6... e5 {[%clk
0:03:02.4]} 7. d3 {[%clk 0:03:02.6]} 7... Nc6 {[%clk 0:03:02.5]} 8. Rb1 {[%clk
0:03:03.2]} 8... a5 {[%clk 0:03:03]} 9. a3 {[%clk 0:03:03.5]} 9... h6 {[%clk
0:03:01.8]} 10. b4 {[%clk 0:03:03.2]} 10... axb4 {[%clk 0:03:02.7]} 11. axb4
{[%clk 0:03:03.8]} 11... Be6 {[%clk 0:03:03.3]} 12. Nd2 {[%clk 0:02:59.9]} 12...
Rb8 {[%clk 0:03:03.3]} 13. e4 {[%clk 0:02:55.3]} 13... Nd4 {[%clk 0:02:52.5]}
14. f4 {[%clk 0:02:50.5]} 14... exf4 {[%clk 0:02:46.6]} 15. gxf4 {[%clk
0:02:49.9]} 15... Ng4 {[%clk 0:02:38.6]} 16. Nd5 {[%clk 0:02:24.1]} 16... Bxd5
{[%clk 0:02:04.1]} 17. Qxg4 {[%clk 0:02:21.8]} 17... Be6 {[%clk 0:02:00.9]} 18.
f5 {[%clk 0:02:19.2]} 18... Bd7 {[%clk 0:01:50.4]} 19. Nb3 {[%clk 0:02:13.2]}
19... h5 {[%clk 0:01:45.1]} 20. Qh3 {[%clk 0:02:12.7]} 20... Qf6 {[%clk
0:01:26.1]} 21. Bb2 {[%clk 0:02:05.4]} 21... Ne2+ {[%clk 0:01:09.7]} 22. Kh1
{[%clk 0:02:05.3]} 22... Qg5 {[%clk 0:01:09.6]} 23. Bxg7 {[%clk 0:02:00.9]}
23... Kxg7 {[%clk 0:01:10.5]} 24. f6+ {[%clk 0:02:00.9]} 24... Kh7 {[%clk
0:01:07]} 25. Qxd7 {[%clk 0:02:00.5]} 25... Nf4 {[%clk 0:01:01.7]} 26. Rxf4
{[%clk 0:01:25.5]} 26... Qxf4 {[%clk 0:01:01.8]} 27. Rf1 {[%clk 0:01:22.1]}
27... Qe3 {[%clk 0:01:01.5]} 28. Qh3 {[%clk 0:01:19.7]} 28... Qxh3 {[%clk
0:00:56.2]} 29. Bxh3 {[%clk 0:01:19.8]} 29... Ra8 {[%clk 0:00:57.1]} 30. Nd4
{[%clk 0:01:15.3]} 30... Ra3 {[%clk 0:00:54.9]} 31. Rd1 {[%clk 0:01:14.6]} 31...
c6 {[%clk 0:00:53.5]} 32. b5 {[%clk 0:01:06.8]} 32... c5 {[%clk 0:00:49]} 33.
Nf3 {[%clk 0:01:06.8]} 33... Kh6 {[%clk 0:00:43.7]} 34. e5 {[%clk 0:01:06.3]}
34... g5 {[%clk 0:00:31.6]} 35. Bf5 {[%clk 0:00:52.5]} 35... g4 {[%clk
0:00:31.2]} 36. Ne1 {[%clk 0:00:49.4]} 36... dxe5 {[%clk 0:00:25.9]} 37. Be4
{[%clk 0:00:49.6]} 37... b6 {[%clk 0:00:25]} 38. Nc2 {[%clk 0:00:49.3]} 38...
Ra2 {[%clk 0:00:23.7]} 39. Ne3 {[%clk 0:00:49.5]} 39... Kg5 {[%clk 0:00:14.9]}
40. Nd5 {[%clk 0:00:46.8]} 40... Rfa8 {[%clk 0:00:12.2]} 41. Nxb6 {[%clk
0:00:43.7]} 41... R8a3 {[%clk 0:00:12.9]} 42. Nd7 {[%clk 0:00:42.3]} 42... Rb3
{[%clk 0:00:11.5]} 43. Nxe5 {[%clk 0:00:16.3]} 43... Rbb2 {[%clk 0:00:11.4]} 44.
Nxf7+ {[%clk 0:00:15.5]} 44... Kxf6 {[%clk 0:00:11.9]} 45. Rf1+ {[%clk
0:00:15.8]} 45... Ke6 {[%clk 0:00:08.9]} 46. Nd8+ {[%clk 0:00:15.7]} 46... Kd7
{[%clk 0:00:05.8]} 47. Nc6 {[%clk 0:00:16]} 47... Rxh2+ {[%clk 0:00:06.1]} 48.
Kg1 {[%clk 0:00:16.6]} 48... g3 {[%clk 0:00:04.1]} 49. Ne5+ {[%clk 0:00:15.5]}
49... Ke6 {[%clk 0:00:04.3]} 50. Ng6 {[%clk 0:00:13.8]} 50... h4 {[%clk
0:00:04]} 51. Nf4+ {[%clk 0:00:14]} 51... Ke5 {[%clk 0:00:04.6]} 52. b6 {[%clk
0:00:12.5]} 52... Rab2 {[%clk 0:00:03.2]} 53. b7 {[%clk 0:00:12.4]} 53... h3
{[%clk 0:00:03.8]} 54. Nxh3 {[%clk 0:00:07.9]} 54... Rxh3 {[%clk 0:00:04.1]} 55.
Rf8 {[%clk 0:00:05.2]} 55... Rb1+ {[%clk 0:00:02.8]} 56. Kg2 {[%clk 0:00:05.1]}
56... Rh2+ {[%clk 0:00:03.5]} 57. Kxg3 {[%clk 0:00:05.5]} 57... Rhb2 {[%clk
0:00:04.3]} 58. Re8+ {[%clk 0:00:04.4]} 58... Kd4 {[%clk 0:00:04.8]} 59. Kf4
{[%clk 0:00:04.7]} 59... Rf2+ {[%clk 0:00:04.6]} 60. Bf3 {[%clk 0:00:05.1]}
60... Rfb2 {[%clk 0:00:03.9]} 61. Rd8+ {[%clk 0:00:04.8]} 61... Kc3 {[%clk
0:00:04.2]} 62. Be4 {[%clk 0:00:05.4]} 62... Rf2+ {[%clk 0:00:04]} 63. Ke5
{[%clk 0:00:05.8]} 63... Rfb2 {[%clk 0:00:03.7]} 64. Kd6 {[%clk 0:00:06.3]}
64... Rb6+ {[%clk 0:00:01.5]} 65. Kxc5 {[%clk 0:00:06.7]} 1-0

[Event "Late-Titled-Tuesday-Blitz-February-27-2024"]
[Site "Chess.com"]
[Date "2024.02.27"]
[Round "6"]
[White "EvilMorty23"]
[Black "bancsoo"]
[Result "1-0"]
[WhiteElo "2589"]
[BlackElo "2883"]
[TimeControl "180+1"]
[EndTime "15:06:55 PST"]
[Termination "EvilMorty23 won on time"]

1. e4 {[%clk 0:02:54.4]} 1... e5 {[%clk 0:03:00.2]} 2. Nf3 {[%clk 0:02:53.5]}
2... d6 {[%clk 0:03:00.7]} 3. d4 {[%clk 0:02:52.3]} 3... exd4 {[%clk 0:03:01.6]}
4. Nxd4 {[%clk 0:02:52.9]} 4... Nf6 {[%clk 0:03:02.4]} 5. Nc3 {[%clk 0:02:52.9]}
5... Be7 {[%clk 0:03:03.2]} 6. Be2 {[%clk 0:02:52.5]} 6... O-O {[%clk
0:03:03.7]} 7. Be3 {[%clk 0:02:52.8]} 7... Re8 {[%clk 0:03:03.8]} 8. O-O {[%clk
0:02:52.6]} 8... Bf8 {[%clk 0:03:04.2]} 9. Bf3 {[%clk 0:02:49.5]} 9... Nbd7
{[%clk 0:03:02.4]} 10. g3 {[%clk 0:02:48.3]} 10... Nc5 {[%clk 0:03:00.4]} 11.
Bg5 {[%clk 0:02:44.8]} 11... h6 {[%clk 0:03:00.4]} 12. Bxf6 {[%clk 0:02:42.7]}
12... Qxf6 {[%clk 0:03:01]} 13. Bg2 {[%clk 0:02:42.2]} 13... c6 {[%clk
0:02:59.6]} 14. f4 {[%clk 0:02:37.6]} 14... g6 {[%clk 0:02:59.1]} 15. Qd2 {[%clk
0:02:29.5]} 15... Bg7 {[%clk 0:02:51.9]} 16. Rad1 {[%clk 0:02:29.2]} 16... Bg4
{[%clk 0:02:52.2]} 17. Nde2 {[%clk 0:02:21.2]} 17... Rad8 {[%clk 0:02:39.9]} 18.
h3 {[%clk 0:02:21.5]} 18... Bxe2 {[%clk 0:02:34.4]} 19. Qxe2 {[%clk 0:02:22.4]}
19... b5 {[%clk 0:02:28.3]} 20. a3 {[%clk 0:02:19.5]} 20... a5 {[%clk
0:02:28.7]} 21. Qe3 {[%clk 0:02:10.2]} 21... b4 {[%clk 0:02:24.5]} 22. axb4
{[%clk 0:02:09]} 22... axb4 {[%clk 0:02:25.2]} 23. e5 {[%clk 0:02:02.7]} 23...
dxe5 {[%clk 0:02:05.7]} 24. Qxc5 {[%clk 0:01:50.5]} 24... bxc3 {[%clk
0:02:05.9]} 25. Qxc3 {[%clk 0:01:48]} 25... Rxd1 {[%clk 0:01:56.3]} 26. Rxd1
{[%clk 0:01:47.4]} 26... exf4 {[%clk 0:01:52.8]} 27. Qxc6 {[%clk 0:01:44.3]}
27... Re6 {[%clk 0:01:22.8]} 28. Qa8+ {[%clk 0:01:35.3]} 28... Kh7 {[%clk
0:01:23.1]} 29. gxf4 {[%clk 0:01:30.4]} 29... Qxb2 {[%clk 0:01:17.2]} 30. f5
{[%clk 0:01:20.5]} 30... gxf5 {[%clk 0:00:59]} 31. Qa4 {[%clk 0:00:49.4]} 31...
Re2 {[%clk 0:00:28]} 32. Bf1 {[%clk 0:00:39.9]} 32... Qb6+ {[%clk 0:00:20.2]}
33. Kh1 {[%clk 0:00:35.3]} 33... Qb7+ {[%clk 0:00:11]} 34. Kg1 {[%clk
0:00:35.5]} 34... Re4 {[%clk 0:00:11.1]} 35. Qb3 {[%clk 0:00:26.7]} 35... Bd4+
{[%clk 0:00:09.6]} 36. Kh1 {[%clk 0:00:22.8]} 36... Qe7 {[%clk 0:00:08.6]} 37.
Qf3 {[%clk 0:00:21.4]} 37... Qe5 {[%clk 0:00:08.4]} 38. Bd3 {[%clk 0:00:20.7]}
38... Rf4 {[%clk 0:00:08.9]} 39. Qg2 {[%clk 0:00:20]} 39... Be3 {[%clk
0:00:07.3]} 40. Rf1 {[%clk 0:00:20]} 40... Rxf1+ {[%clk 0:00:07]} 41. Qxf1
{[%clk 0:00:20.9]} 41... Kg6 {[%clk 0:00:07.7]} 42. Qg2+ {[%clk 0:00:20.8]}
42... Kf6 {[%clk 0:00:07.9]} 43. Qc6+ {[%clk 0:00:20.9]} 43... Kg7 {[%clk
0:00:08.4]} 44. Qg2+ {[%clk 0:00:20.8]} 44... Kf8 {[%clk 0:00:08.8]} 45. Qa8+
{[%clk 0:00:20.6]} 45... Kg7 {[%clk 0:00:09.3]} 46. Qg2+ {[%clk 0:00:20.6]}
46... Kf6 {[%clk 0:00:08.3]} 47. Qc6+ {[%clk 0:00:20.5]} 47... Qe6 {[%clk
0:00:05.7]} 48. Qc3+ {[%clk 0:00:20.4]} 48... Kg6 {[%clk 0:00:04.7]} 49. Qh8
{[%clk 0:00:16.3]} 49... Qd5+ {[%clk 0:00:04.6]} 50. Kh2 {[%clk 0:00:16.8]}
50... Qd6+ {[%clk 0:00:05]} 51. Kg2 {[%clk 0:00:16.4]} 51... Qd5+ {[%clk
0:00:04.5]} 52. Kh2 {[%clk 0:00:16.8]} 52... Qf3 {[%clk 0:00:04.8]} 53. Qg8+
{[%clk 0:00:15.7]} 53... Kf6 {[%clk 0:00:05.3]} 54. Qd8+ {[%clk 0:00:15.2]}
54... Kg7 {[%clk 0:00:05.2]} 55. Qh4 {[%clk 0:00:12.7]} 55... Bf4+ {[%clk
0:00:05.3]} 56. Kg1 {[%clk 0:00:13]} 56... Bg3 {[%clk 0:00:04.4]} 57. Qd4+
{[%clk 0:00:13.1]} 57... Kg6 {[%clk 0:00:05.1]} 58. Qb6+ {[%clk 0:00:11.8]}
58... Kh5 {[%clk 0:00:04.9]} 59. Qd4 {[%clk 0:00:09.7]} 59... f4 {[%clk
0:00:04]} 60. Qe5+ {[%clk 0:00:07.6]} 60... Kh4 {[%clk 0:00:02.1]} 61. Qf6+
{[%clk 0:00:07.5]} 61... Kh5 {[%clk 0:00:02.8]} 62. Qe5+ {[%clk 0:00:05.4]}
62... Kh4 {[%clk 0:00:03.3]} 63. Qe7+ {[%clk 0:00:05]} 63... Kh5 {[%clk
0:00:03.7]} 64. Be2 {[%clk 0:00:04.9]} 1-0

[Event "Late-Titled-Tuesday-Blitz-February-27-2024"]
[Site "Chess.com"]
[Date "2024.02.27"]
[Round "6"]
[White "CURRUTACO59"]
[Black "ural58"]
[Result "0-1"]
[WhiteElo "2245"]
[BlackElo "2485"]
[TimeControl "180+1"]
[EndTime "15:06:56 PST"]
[Termination "ural58 won on time"]

1. Nf3 {[%clk 0:02:57.1]} 1... Nc6 {[%clk 0:02:56.2]} 2. d4 {[%clk 0:02:56.9]}
2... d5 {[%clk 0:02:56.4]} 3. e3 {[%clk 0:02:54.2]} 3... Bg4 {[%clk 0:02:55.9]}
4. Be2 {[%clk 0:02:54.4]} 4... e6 {[%clk 0:02:55.8]} 5. Nbd2 {[%clk 0:02:54.3]}
5... Bd6 {[%clk 0:02:55.9]} 6. b3 {[%clk 0:02:54.3]} 6... Nf6 {[%clk 0:02:55.5]}
7. Bb2 {[%clk 0:02:54.4]} 7... O-O {[%clk 0:02:55.5]} 8. O-O {[%clk 0:02:54.4]}
8... Ne4 {[%clk 0:02:54.6]} 9. c4 {[%clk 0:02:40.3]} 9... f5 {[%clk 0:02:51.5]}
10. c5 {[%clk 0:02:37.9]} 10... Be7 {[%clk 0:02:49.8]} 11. a3 {[%clk 0:02:29.8]}
11... Bf6 {[%clk 0:02:48.5]} 12. b4 {[%clk 0:02:28.7]} 12... a6 {[%clk
0:02:46.1]} 13. Qc2 {[%clk 0:02:17.8]} 13... Qe8 {[%clk 0:02:41.4]} 14. Rab1
{[%clk 0:01:51.2]} 14... Qg6 {[%clk 0:02:34.9]} 15. Bc1 {[%clk 0:01:42.2]} 15...
e5 {[%clk 0:01:47.1]} 16. dxe5 {[%clk 0:01:32.8]} 16... Nxe5 {[%clk 0:01:46.3]}
17. Nxe5 {[%clk 0:01:31.5]} 17... Bxe5 {[%clk 0:01:46.3]} 18. Nf3 {[%clk
0:01:24.6]} 18... Bf6 {[%clk 0:01:34.5]} 19. Bb2 {[%clk 0:01:23.5]} 19... Rae8
{[%clk 0:01:29]} 20. Bxf6 {[%clk 0:01:20.4]} 20... Qxf6 {[%clk 0:01:29.1]} 21.
Nd4 {[%clk 0:01:06.4]} 21... Bxe2 {[%clk 0:01:25.9]} 22. Nxe2 {[%clk 0:01:06]}
22... c6 {[%clk 0:01:21.4]} 23. Rbd1 {[%clk 0:01:04.3]} 23... h6 {[%clk
0:01:20.2]} 24. Nd4 {[%clk 0:00:51.9]} 24... f4 {[%clk 0:01:17.9]} 25. exf4
{[%clk 0:00:50.8]} 25... Qxf4 {[%clk 0:01:17.4]} 26. f3 {[%clk 0:00:48]} 26...
Ng5 {[%clk 0:01:11.4]} 27. Qd2 {[%clk 0:00:40.1]} 27... Qxd2 {[%clk 0:01:03.3]}
28. Rxd2 {[%clk 0:00:41]} 28... Re3 {[%clk 0:01:03.1]} 29. Nc2 {[%clk
0:00:28.2]} 29... Rc3 {[%clk 0:00:59.6]} 30. Re1 {[%clk 0:00:28.1]} 30... Rfxf3
{[%clk 0:00:34]} 31. h4 {[%clk 0:00:21.4]} 31... Nh3+ {[%clk 0:00:22.2]} 32.
gxh3 {[%clk 0:00:20.8]} 32... Rxh3 {[%clk 0:00:22.2]} 33. Rh2 {[%clk 0:00:15.9]}
33... Rxh2 {[%clk 0:00:21]} 34. Kxh2 {[%clk 0:00:16.5]} 34... Rxc2+ {[%clk
0:00:21.3]} 35. Kg3 {[%clk 0:00:17.1]} 35... Rc3+ {[%clk 0:00:21.1]} 36. Kg4
{[%clk 0:00:17.8]} 36... Kf7 {[%clk 0:00:20.2]} 37. Rf1+ {[%clk 0:00:14.7]}
37... Ke7 {[%clk 0:00:20.5]} 38. h5 {[%clk 0:00:14.3]} 38... Rxa3 {[%clk
0:00:19.7]} 39. Re1+ {[%clk 0:00:14.4]} 39... Kd7 {[%clk 0:00:19.9]} 40. Rf1
{[%clk 0:00:14.4]} 40... Rb3 {[%clk 0:00:19.3]} 41. Rf7+ {[%clk 0:00:14.1]}
41... Kc8 {[%clk 0:00:19.6]} 42. Rxg7 {[%clk 0:00:13.4]} 42... Rxb4+ {[%clk
0:00:19.8]} 43. Kf5 {[%clk 0:00:14]} 43... a5 {[%clk 0:00:16.3]} 44. Rh7 {[%clk
0:00:09.9]} 44... a4 {[%clk 0:00:15.7]} 45. Rxh6 {[%clk 0:00:09.3]} 45... Rc4
{[%clk 0:00:12.9]} 46. Rh8+ {[%clk 0:00:09.2]} 46... Kc7 {[%clk 0:00:12.6]} 47.
Ra8 {[%clk 0:00:09.6]} 47... Rxc5 {[%clk 0:00:09.2]} 48. Rxa4 {[%clk 0:00:09]}
48... Rc1 {[%clk 0:00:09.2]} 49. h6 {[%clk 0:00:08.6]} 49... Rh1 {[%clk
0:00:08.6]} 50. Kg6 {[%clk 0:00:08.5]} 50... b5 {[%clk 0:00:08.5]} 51. Rf4
{[%clk 0:00:05.4]} 51... Kb6 {[%clk 0:00:08.4]} 52. h7 {[%clk 0:00:05.4]} 52...
c5 {[%clk 0:00:06.2]} 53. Kg7 {[%clk 0:00:03.7]} 53... Ka5 {[%clk 0:00:05.3]}
54. Rf6 {[%clk 0:00:01.1]} 54... Rxh7+ {[%clk 0:00:04.6]} 55. Kxh7 {[%clk
0:00:01.7]} 55... d4 {[%clk 0:00:04.9]} 56. Kg6 {[%clk 0:00:01.7]} 56... d3
{[%clk 0:00:05.2]} 57. Kf5 {[%clk 0:00:01]} 57... c4 {[%clk 0:00:04.5]} 0-1

[Event "Late-Titled-Tuesday-Blitz-February-27-2024"]
[Site "Chess.com"]
[Date "2024.02.27"]
[Round "6"]
[White "TheAlienParty"]
[Black "ritanovikova"]
[Result "1-0"]
[WhiteElo "2381"]
[BlackElo "2228"]
[TimeControl "180+1"]
[EndTime "15:06:58 PST"]
[Termination "TheAlienParty won by resignation"]

1. c4 {[%clk 0:02:57.1]} 1... g6 {[%clk 0:02:59.8]} 2. Nc3 {[%clk 0:02:56]} 2...
d6 {[%clk 0:03:00.2]} 3. g3 {[%clk 0:02:52.2]} 3... Bg7 {[%clk 0:03:00.6]} 4.
Bg2 {[%clk 0:02:52.1]} 4... Nf6 {[%clk 0:03:00.9]} 5. e3 {[%clk 0:02:49.8]} 5...
O-O {[%clk 0:03:01.2]} 6. Nge2 {[%clk 0:02:49.6]} 6... e5 {[%clk 0:03:00.6]} 7.
d3 {[%clk 0:02:49.6]} 7... c6 {[%clk 0:02:59.3]} 8. O-O {[%clk 0:02:48.9]} 8...
Be6 {[%clk 0:02:58.9]} 9. b4 {[%clk 0:02:42.1]} 9... d5 {[%clk 0:02:57.1]} 10.
cxd5 {[%clk 0:02:40.8]} 10... cxd5 {[%clk 0:02:56.9]} 11. d4 {[%clk 0:02:40.4]}
11... e4 {[%clk 0:02:53.1]} 12. Nf4 {[%clk 0:02:40.3]} 12... Bg4 {[%clk
0:02:51.5]} 13. Qb3 {[%clk 0:02:39.8]} 13... Be6 {[%clk 0:02:47.3]} 14. Nxe6
{[%clk 0:02:35.5]} 14... fxe6 {[%clk 0:02:47.2]} 15. a4 {[%clk 0:02:32.5]} 15...
Qe7 {[%clk 0:02:45.9]} 16. a5 {[%clk 0:02:32.4]} 16... Rd8 {[%clk 0:02:39.9]}
17. Ba3 {[%clk 0:02:32]} 17... Qf7 {[%clk 0:02:39.7]} 18. b5 {[%clk 0:02:31]}
18... Nbd7 {[%clk 0:02:36.2]} 19. Ra2 {[%clk 0:02:30.5]} 19... Rac8 {[%clk
0:02:35.5]} 20. f3 {[%clk 0:02:21.2]} 20... exf3 {[%clk 0:02:30]} 21. Bxf3
{[%clk 0:02:21]} 21... Kh8 {[%clk 0:02:29.7]} 22. Raf2 {[%clk 0:02:20.2]} 22...
Qe8 {[%clk 0:02:29.2]} 23. Bb2 {[%clk 0:01:43.1]} 23... b6 {[%clk 0:02:22.9]}
24. a6 {[%clk 0:01:41.2]} 24... Rc7 {[%clk 0:02:02.6]} 25. e4 {[%clk 0:01:40.5]}
25... dxe4 {[%clk 0:01:59.2]} 26. Nxe4 {[%clk 0:01:39]} 26... Nxe4 {[%clk
0:01:58.6]} 27. Bxe4 {[%clk 0:01:38.7]} 27... Qe7 {[%clk 0:01:49]} 28. Rf7
{[%clk 0:01:33.3]} 28... Qd6 {[%clk 0:01:48]} 29. Rxg7 {[%clk 0:01:27.2]} 29...
Kxg7 {[%clk 0:01:47.3]} 30. d5+ {[%clk 0:01:26.1]} 30... e5 {[%clk 0:01:40.8]}
31. Qe3 {[%clk 0:01:04.7]} 31... Qc5 {[%clk 0:01:31.4]} 32. Qxc5 {[%clk
0:00:49.6]} 32... Rxc5 {[%clk 0:01:31.2]} 33. d6 {[%clk 0:00:44.3]} 33... Rxb5
{[%clk 0:01:27]} 34. Ba1 {[%clk 0:00:35.2]} 34... Nf6 {[%clk 0:01:20.9]} 35. Bd3
{[%clk 0:00:32]} 35... Rd5 {[%clk 0:01:17.8]} 36. Bc4 {[%clk 0:00:25.9]} 36...
Rc5 {[%clk 0:01:17.5]} 37. Bb3 {[%clk 0:00:19.9]} 37... Rb5 {[%clk 0:01:07.6]}
38. Bc4 {[%clk 0:00:19]} 38... Rb4 {[%clk 0:01:06.4]} 39. Ba2 {[%clk 0:00:18.7]}
39... Re4 {[%clk 0:01:01.9]} 40. h3 {[%clk 0:00:16.2]} 40... Rxd6 {[%clk
0:01:01.1]} 41. g4 {[%clk 0:00:15.9]} 41... Nd7 {[%clk 0:00:54.3]} 42. Rc1
{[%clk 0:00:12.4]} 42... Nc5 {[%clk 0:00:51.5]} 43. Kf2 {[%clk 0:00:11.3]} 43...
Kf6 {[%clk 0:00:48.4]} 44. Kg3 {[%clk 0:00:10.8]} 44... Ra4 {[%clk 0:00:45.6]}
45. Rf1+ {[%clk 0:00:10.3]} 45... Ke7 {[%clk 0:00:38.3]} 46. Bg8 {[%clk
0:00:09.4]} 46... Ra3+ {[%clk 0:00:36.6]} 47. Kh4 {[%clk 0:00:09.1]} 47... Ne6
{[%clk 0:00:34.4]} 48. Bxe5 {[%clk 0:00:08.5]} 48... Ra5 {[%clk 0:00:31.8]} 49.
Rf7+ {[%clk 0:00:07.8]} 49... Ke8 {[%clk 0:00:31.4]} 50. Bxd6 {[%clk 0:00:07.3]}
50... Rxa6 {[%clk 0:00:31.1]} 51. Rxh7 {[%clk 0:00:06.5]} 51... Nf8 {[%clk
0:00:30.7]} 52. Re7+ {[%clk 0:00:05.9]} 52... Kd8 {[%clk 0:00:30.6]} 53. Bf7
{[%clk 0:00:05.7]} 53... b5 {[%clk 0:00:29.7]} 54. Bb4 {[%clk 0:00:04.4]} 54...
Ra4 {[%clk 0:00:28.9]} 55. Re8+ {[%clk 0:00:04.6]} 55... Kd7 {[%clk 0:00:28.6]}
56. Bxf8 {[%clk 0:00:05.5]} 56... Rf4 {[%clk 0:00:28.1]} 57. Ra8 {[%clk
0:00:03.9]} 57... Rxf7 {[%clk 0:00:28.1]} 58. Rxa7+ {[%clk 0:00:04.2]} 58... Ke8
{[%clk 0:00:29]} 59. Rxf7 {[%clk 0:00:04.8]} 59... Kxf7 {[%clk 0:00:29.3]} 60.
Bb4 {[%clk 0:00:05.7]} 60... Ke6 {[%clk 0:00:29.7]} 61. Kg5 {[%clk 0:00:06.6]}
61... Kf7 {[%clk 0:00:30.1]} 62. h4 {[%clk 0:00:06.6]} 62... Kg7 {[%clk
0:00:30.4]} 63. Bc3+ {[%clk 0:00:07.4]} 63... Kh7 {[%clk 0:00:30.6]} 64. Kf6
{[%clk 0:00:07.9]} 64... Kh6 {[%clk 0:00:30.3]} 65. Kf7 {[%clk 0:00:08.3]} 65...
Kh7 {[%clk 0:00:30.7]} 66. g5 {[%clk 0:00:08.3]} 66... b4 {[%clk 0:00:27.8]} 67.
Bxb4 {[%clk 0:00:08.5]} 67... Kh8 {[%clk 0:00:28.2]} 68. Kxg6 {[%clk 0:00:09.3]}
68... Kg8 {[%clk 0:00:28.5]} 69. h5 {[%clk 0:00:10.2]} 1-0

[Event "Late-Titled-Tuesday-Blitz-February-27-2024"]
[Site "Chess.com"]
[Date "2024.02.27"]
[Round "6"]
[White "C_K_G"]
[Black "N_Mullodzhanov"]
[Result "0-1"]
[WhiteElo "2167"]
[BlackElo "2455"]
[TimeControl "180+1"]
[EndTime "15:07:14 PST"]
[Termination "N_Mullodzhanov won by checkmate"]

1. e4 {[%clk 0:02:55]} 1... c6 {[%clk 0:03:00.1]} 2. Nf3 {[%clk 0:02:55.5]} 2...
d5 {[%clk 0:03:00.4]} 3. Nc3 {[%clk 0:02:56.4]} 3... Bg4 {[%clk 0:02:59.7]} 4.
exd5 {[%clk 0:02:52.4]} 4... cxd5 {[%clk 0:02:59.6]} 5. Bb5+ {[%clk 0:02:53]}
5... Nc6 {[%clk 0:02:57.8]} 6. Ne5 {[%clk 0:02:53.3]} 6... Bxd1 {[%clk
0:02:22.3]} 7. Nxc6 {[%clk 0:02:51.3]} 7... Qb6 {[%clk 0:02:20]} 8. Nxd5 {[%clk
0:02:36.3]} 8... Qxb5 {[%clk 0:02:15.1]} 9. Nc7+ {[%clk 0:02:30.9]} 9... Kd7
{[%clk 0:02:14.8]} 10. Nxb5 {[%clk 0:02:30.7]} 10... bxc6 {[%clk 0:02:15.1]} 11.
Nd4 {[%clk 0:02:29.7]} 11... Bh5 {[%clk 0:02:12.6]} 12. O-O {[%clk 0:02:25.9]}
12... e5 {[%clk 0:02:11.6]} 13. Nb3 {[%clk 0:02:23.3]} 13... f6 {[%clk
0:02:10.9]} 14. d4 {[%clk 0:02:22.4]} 14... exd4 {[%clk 0:02:02.8]} 15. Nxd4
{[%clk 0:02:22.2]} 15... Bg6 {[%clk 0:02:02.3]} 16. c3 {[%clk 0:02:18.2]} 16...
c5 {[%clk 0:01:59.5]} 17. Nb3 {[%clk 0:02:17.7]} 17... Bc2 {[%clk 0:01:58.1]}
18. Be3 {[%clk 0:02:15.2]} 18... Bxb3 {[%clk 0:01:56.8]} 19. axb3 {[%clk
0:02:13.9]} 19... Bd6 {[%clk 0:01:48.5]} 20. Ra5 {[%clk 0:02:12.7]} 20... Ne7
{[%clk 0:01:41.1]} 21. Rd1 {[%clk 0:02:12.1]} 21... Kc7 {[%clk 0:01:31.2]} 22.
Bxc5 {[%clk 0:02:02.2]} 22... Bxc5 {[%clk 0:01:32.1]} 23. Rxc5+ {[%clk
0:02:01.3]} 23... Nc6 {[%clk 0:01:30.2]} 24. b4 {[%clk 0:02:01]} 24... Rad8
{[%clk 0:01:28.4]} 25. Ra1 {[%clk 0:01:55.9]} 25... Kb6 {[%clk 0:01:25.8]} 26.
g3 {[%clk 0:01:54.3]} 26... Rd2 {[%clk 0:01:23.2]} 27. Re1 {[%clk 0:01:42.2]}
27... a5 {[%clk 0:01:14.6]} 28. Re6 {[%clk 0:01:38.6]} 28... Rc8 {[%clk
0:01:14.9]} 29. Rxa5 {[%clk 0:01:37.2]} 29... Rxb2 {[%clk 0:01:08.6]} 30. Rh5
{[%clk 0:01:35.7]} 30... h6 {[%clk 0:01:04.4]} 31. Rc5 {[%clk 0:01:34.4]} 31...
Rb3 {[%clk 0:00:52.5]} 32. h4 {[%clk 0:01:32.8]} 32... Kb7 {[%clk 0:00:44.7]}
33. b5 {[%clk 0:01:27.6]} 33... Ne5 {[%clk 0:00:42.4]} 34. Re7+ {[%clk
0:01:22.2]} 34... Kb8 {[%clk 0:00:42.6]} 35. Rxc8+ {[%clk 0:01:18.1]} 35... Kxc8
{[%clk 0:00:43.5]} 36. Rxg7 {[%clk 0:01:10.2]} 36... Rxb5 {[%clk 0:00:42.8]} 37.
Rh7 {[%clk 0:01:08.7]} 37... h5 {[%clk 0:00:39.4]} 38. Kg2 {[%clk 0:01:08.4]}
38... Ng4 {[%clk 0:00:36.3]} 39. f3 {[%clk 0:01:08.4]} 39... Rb2+ {[%clk
0:00:24.9]} 40. Kg1 {[%clk 0:01:08.1]} 40... Ne5 {[%clk 0:00:18.4]} 41. Rxh5
{[%clk 0:01:04.1]} 41... Nxf3+ {[%clk 0:00:19.3]} 42. Kf1 {[%clk 0:01:04.3]}
42... Kd7 {[%clk 0:00:16.9]} 43. Rf5 {[%clk 0:01:01.9]} 43... Nh2+ {[%clk
0:00:16.5]} 44. Kg1 {[%clk 0:00:57.8]} 44... Ng4 {[%clk 0:00:02.1]} 45. Rf4
{[%clk 0:00:55.3]} 45... Rb1+ {[%clk 0:00:02.5]} 46. Kg2 {[%clk 0:00:54.7]}
46... f5 {[%clk 0:00:02.8]} 47. h5 {[%clk 0:00:47.3]} 47... Ke6 {[%clk
0:00:03.1]} 48. c4 {[%clk 0:00:41.8]} 48... Rb2+ {[%clk 0:00:03.1]} 49. Kg1
{[%clk 0:00:39.8]} 49... Rc2 {[%clk 0:00:03.5]} 50. Rd4 {[%clk 0:00:35.2]} 50...
Kf6 {[%clk 0:00:03.6]} 51. Kf1 {[%clk 0:00:22.8]} 51... Kg5 {[%clk 0:00:03.6]}
52. Rf4 {[%clk 0:00:21.5]} 52... Rxc4 {[%clk 0:00:02.3]} 53. Rxc4 {[%clk
0:00:16.8]} 53... Ne3+ {[%clk 0:00:02]} 54. Ke2 {[%clk 0:00:16.7]} 54... Nxc4
{[%clk 0:00:02.9]} 55. Kf3 {[%clk 0:00:15.9]} 55... Ne5+ {[%clk 0:00:03.2]} 56.
Ke3 {[%clk 0:00:15.1]} 56... Ng4+ {[%clk 0:00:04.1]} 57. Kf3 {[%clk 0:00:15]}
57... Kxh5 {[%clk 0:00:05]} 58. Kf4 {[%clk 0:00:15.6]} 58... Kg6 {[%clk
0:00:05.9]} 59. Kf3 {[%clk 0:00:15.9]} 59... Kg5 {[%clk 0:00:06.8]} 60. Kg2
{[%clk 0:00:15.4]} 60... Nf6 {[%clk 0:00:07.7]} 61. Kf3 {[%clk 0:00:15.9]} 61...
Nh5 {[%clk 0:00:08]} 62. Kg2 {[%clk 0:00:14]} 62... Kg4 {[%clk 0:00:08.9]} 63.
Kh2 {[%clk 0:00:14.6]} 63... Nxg3 {[%clk 0:00:09.7]} 64. Kg2 {[%clk 0:00:15.5]}
64... f4 {[%clk 0:00:10.1]} 65. Kf2 {[%clk 0:00:16]} 65... f3 {[%clk 0:00:11]}
66. Kg1 {[%clk 0:00:13.5]} 66... Ne4 {[%clk 0:00:11.9]} 67. Kf1 {[%clk
0:00:13.2]} 67... Kg3 {[%clk 0:00:12.2]} 68. Kg1 {[%clk 0:00:13.8]} 68... f2+
{[%clk 0:00:12.2]} 69. Kf1 {[%clk 0:00:14.7]} 69... Nd2+ {[%clk 0:00:11.3]} 70.
Ke2 {[%clk 0:00:14.5]} 70... f1=Q+ {[%clk 0:00:12.2]} 71. Kxd2 {[%clk
0:00:15.4]} 71... Qf3 {[%clk 0:00:13.1]} 72. Kc2 {[%clk 0:00:15.1]} 72... Kf4
{[%clk 0:00:14]} 73. Kd2 {[%clk 0:00:16]} 73... Ke4 {[%clk 0:00:14.9]} 74. Kc2
{[%clk 0:00:13.1]} 74... Kd4 {[%clk 0:00:15.8]} 75. Kd2 {[%clk 0:00:14]} 75...
Qg2+ {[%clk 0:00:16.4]} 76. Ke1 {[%clk 0:00:14.4]} 76... Kd3 {[%clk 0:00:17.3]}
77. Kd1 {[%clk 0:00:15.2]} 77... Qg1# {[%clk 0:00:18]} 0-1